Department Family,Date Paid,Expense Type,Expense Area,Supplier,Transaction Number,Amount,Vat Inclusive
Crown Prosecution Service ,03/04/20,File Storage,Records Management Unit,Iron Mountain Ltd,06022466,"73,460.44",Y
Crown Prosecution Service ,03/04/20,Crown Court Graduated Fee Scheme,Mersey Cheshire Complex Casework Unit,Harrington Street Chambers,1090269/HR8,"37,249.87",Y
Crown Prosecution Service ,03/04/20,Crown Court Graduated Fee Scheme,Mersey Cheshire Complex Casework Unit,Harrington Street Chambers,1090269/HR9,"31,217.76",Y
Crown Prosecution Service ,03/04/20,Crown Court Graduated Fee Scheme,North East Complex Casework Unit,Fountain Chambers,112621/RB,"43,663.26",Y
Crown Prosecution Service ,03/04/20,Crown Court Graduated Fee Scheme,North East Complex Casework Unit,Fountain Chambers,112621/RT,"27,788.88",Y
Crown Prosecution Service ,03/04/20,Crown Court Graduated Fee Scheme,South West RASSO Unit Crown Court,Queen Square Chambers,140423(RS),"35,034.76",Y
Crown Prosecution Service ,03/04/20,Crown Court Graduated Fee Scheme,London South Crown Court Unit,Furnival Chambers,156056 GC CaicCastOl,"29,504.92",Y
Crown Prosecution Service ,03/04/20,Crown Court Graduated Fee Scheme,London North Complex Casework Unit,Furnival Chambers,160361 JDS OCEzeoke,"32,375.57",Y
Crown Prosecution Service ,03/04/20,Crown Court Graduated Fee Scheme,London North Complex Casework Unit,5 King's Bench Walk,166186 JP 1,"28,055.40",Y
Crown Prosecution Service ,03/04/20,Crown Court Graduated Fee Scheme,London North Complex Casework Unit,5 King's Bench Walk,168107  DRQC,"39,964.03",Y
Crown Prosecution Service ,03/04/20,Crown Court Graduated Fee Scheme,London North Crown Court Unit,23 Essex Street Chambers,173210-ALG,"38,449.02",Y
Crown Prosecution Service ,03/04/20,Crown Court Graduated Fee Scheme,London North Crown Court Unit,23 Essex Street Chambers,173210-DD,"26,011.15",Y
Crown Prosecution Service ,03/04/20,Crown Court Graduated Fee Scheme,South West RASSO Unit Crown Court,Guildhall Chambers Bristol,175065  CQ,"77,634.94",Y
Crown Prosecution Service ,03/04/20,Crown Court Very High Cost Cases Full Scheme,Organised Crime London,23 Essex Street Chambers,177779-LWI,"43,666.00",Y
Crown Prosecution Service ,03/04/20,Crown Court Very High Cost Cases Full Scheme,East Midlands Complex Casework Unit,36 Bedford Row,192593-Stage 2 trial,"29,303.32",Y
Crown Prosecution Service ,03/04/20,Crown Court Graduated Fee Scheme,West Midlands Complex Casework Unit,36 Bedford Row,192746/DT-RETRIAL,"31,885.37",Y
Crown Prosecution Service ,03/04/20,Crown Court Graduated Fee Scheme,East Midlands Crown Court Section,36 Bedford Row,196067-DH-Trial,"39,768.04",Y
Crown Prosecution Service ,03/04/20,Internal Training,Legal Training,Lumesse Limited Luton,20200143,"48,789.00",Y
Crown Prosecution Service ,03/04/20,Internal Training,Legal Training,Lumesse Limited Luton,20200209,"48,789.00",Y
Crown Prosecution Service ,03/04/20,Internal Training,Legal Training,Lumesse Limited Luton,20200210,"45,315.00",Y
Crown Prosecution Service ,03/04/20,Internal Training,Legal Training,Lumesse Limited Luton,20200211,"96,672.00",Y
Crown Prosecution Service ,03/04/20,Internal Training,Prosecution College,Lumesse Limited Luton,20200246,"95,000.00",Y
Crown Prosecution Service ,03/04/20,Crown Court Graduated Fee Scheme,Wessex Crown Court Unit,Pump Court Chambers - 3 Pump Court,248578-SFJ,"57,063.83",Y
Crown Prosecution Service ,03/04/20,Crown Court Graduated Fee Scheme,Cymru Wales North Crown Court,Linenhall Chambers,284498/1apo,"32,788.10",Y
Crown Prosecution Service ,03/04/20,Crown Court Very High Cost Cases Full Scheme,Cymru Wales Complex Casework Unit,Linenhall Chambers,290952ft,"32,289.20",Y
Crown Prosecution Service ,03/04/20,Crown Court Graduated Fee Scheme,Yorks and Humbs CC Legal,Park Square Barristers (No 6 and Sovereign merged),386725/RWQC3,"26,405.41",Y
Crown Prosecution Service ,03/04/20,Crown Court Graduated Fee Scheme,Yorks and Humbs CC Legal,Park Square Barristers (No 6 and Sovereign merged),400716/PMQC,"30,443.36",Y
Crown Prosecution Service ,03/04/20,Shared services,Other Corporate Admin Payments,HM Treasury,42423,"45,000.00",
Crown Prosecution Service ,03/04/20,Recoverable VAT control,Balance Sheet,HM Treasury,42423,"9,000.00",Y
Crown Prosecution Service ,03/04/20,Crown Court Graduated Fee Scheme,North West Crown Court Hub,Exchange Chambers - Liverpool & Leeds,529424 - GC,"33,492.18",Y
Crown Prosecution Service ,03/04/20,Crown Court Graduated Fee Scheme,West Midlands Crown Court Unit,No 5 Fountain Court Chambers,764340/AFK/MASON,"29,397.72",Y
Crown Prosecution Service ,03/04/20,Crown Court Graduated Fee Scheme,West Midlands Complex Casework Unit,No 5 Fountain Court Chambers,769616/MPB/KENFACK,"35,879.70",Y
Crown Prosecution Service ,03/04/20,IT services,End User Computing Contract,WIPRO Holdings London,83019731,"49,032.00",Y
Crown Prosecution Service ,03/04/20,IT services,End User Computing Contract,WIPRO Holdings London,83019732,"54,234.00",Y
Crown Prosecution Service ,03/04/20,Crown Court Graduated Fee Scheme,West Midlands Complex Casework Unit,6 Kings Bench Walk- Chambers of D Fisher & D Perry,97391 ALI CUR,"62,232.08",Y
Crown Prosecution Service ,03/04/20,Crown Court Graduated Fee Scheme,West Midlands Complex Casework Unit,6 Kings Bench Walk- Chambers of D Fisher & D Perry,98387 BERNARD BW,"42,698.10",Y
Crown Prosecution Service ,03/04/20,Crown Court Graduated Fee Scheme,London North Complex Casework Unit,6 Kings Bench Walk- Chambers of D Fisher & D Perry,98544 LEVI SW,"34,476.92",Y
Crown Prosecution Service ,03/04/20,Crown Court Graduated Fee Scheme,London North Complex Casework Unit,6 Kings Bench Walk- Chambers of D Fisher & D Perry,98563 ADOM DAT,"36,113.98",Y
Crown Prosecution Service ,03/04/20,Crown Court Graduated Fee Scheme,Thames and Chiltern Complex Casework Unit,2 Bedford Row Chambers,BA192414-22,"35,598.13",Y
Crown Prosecution Service ,03/04/20,IT non capital software licences,Legal Reference and ICT Licenses,Softcat Plc Marlow,INV2542357,"75,044.46",Y
Crown Prosecution Service ,03/04/20,IT non capital software licences,Legal Reference and ICT Licenses,CDW Limited London,PSINV02546507,"142,377.77",Y
Crown Prosecution Service ,03/04/20,IT non capital software licences,Legal Reference and ICT Licenses,CDW Limited London,PSINV02714037,"107,785.88",Y
Crown Prosecution Service ,06/04/20,Monthly Payroll Settlement,Balance Sheet,HM Revenue and Customs,948PB000021422012,"6,838,311.22",
Crown Prosecution Service ,06/04/20,Apprenticeship Levy payments Permanent,Other Corporate Programme Payments,HM Revenue and Customs,948PB000021422012,"95,402.48",
Crown Prosecution Service ,06/04/20,Apprenticeship Levy payments Permanent,Other Corporate Admin Payments,HM Revenue and Customs,948PB000021422012,"6,089.52",
Crown Prosecution Service ,06/04/20,IT non capital software licences,Legal Reference and ICT Licenses,Softcat Plc Marlow,INV02549661,"75,044.46",Y
Crown Prosecution Service ,06/04/20,Crown Court Graduated Fee Scheme,East Midlands Crown Court Section,Seven Bedford Row,west- vjm,"29,962.36",Y
Crown Prosecution Service ,08/04/20,Crown Court Graduated Fee Scheme,London North RASSO,Foundry Chambers (9-12 Bell Yard),186574ms,"41,236.20",Y
Crown Prosecution Service ,08/04/20,Crown Court Graduated Fee Scheme,Wessex Crown Court Unit,Pump Court Chambers - 3 Pump Court,248578-FABB,"29,054.62",Y
Crown Prosecution Service ,08/04/20,Crown Court Graduated Fee Scheme,Cymru Wales North Crown Court,Apex Chambers,43823/PRQC,"60,781.09",Y
Crown Prosecution Service ,08/04/20,Crown Court Graduated Fee Scheme,East Midlands Complex Casework Unit,No 5 Fountain Court Chambers,763215/MLH/OP CLUB/6,"45,814.67",Y
Crown Prosecution Service ,08/04/20,Crown Court Graduated Fee Scheme,Counter Terrorism Unit: Internal Funding,6 Kings Bench Walk- Chambers of D Fisher & D Perry,98365 CHOWDHURY BL,"25,860.38",Y
Crown Prosecution Service ,08/04/20,Crown Court Graduated Fee Scheme,Counter Terrorism Unit: Internal Funding,6 Kings Bench Walk- Chambers of D Fisher & D Perry,98365 CHOWDHURY DAT,"46,005.97",Y
Crown Prosecution Service ,08/04/20,Crown Court Graduated Fee Scheme,Thames Chiltern Crown Court Unit,Seven Bedford Row,azim- pp,"31,734.25",Y
Crown Prosecution Service ,09/04/20,Property management fees,Estate and FM: Programme,Cushman & Wakefield Debenham Tie Lung Ltd London,CPS500,"5,693.12",Y
Crown Prosecution Service ,09/04/20,Landlord service charge,Estate and FM: Programme,Cushman & Wakefield Debenham Tie Lung Ltd London,CPS500,"9,575.31",Y
Crown Prosecution Service ,09/04/20,National non domestic rates,Estate and FM: Programme,Cushman & Wakefield Debenham Tie Lung Ltd London,CPS500,"4,163.92",
Crown Prosecution Service ,09/04/20,Landlord service charge,Estate and FM: Programme,Cushman & Wakefield Debenham Tie Lung Ltd London,CPS500,"1,858.37",
Crown Prosecution Service ,09/04/20,National non domestic rates,Estate and FM: Programme,Cushman & Wakefield Debenham Tie Lung Ltd London,CPS500,"2,756.60",
Crown Prosecution Service ,09/04/20,Landlord service charge,Estate and FM: Programme,Cushman & Wakefield Debenham Tie Lung Ltd London,CPS500,"15,381.69",
Crown Prosecution Service ,09/04/20,Operating lease rentals Property,Estate and FM: Programme,Cushman & Wakefield Debenham Tie Lung Ltd London,CPS500,"6,047.27",
Crown Prosecution Service ,09/04/20,Landlord service charge,Estate and FM: Programme,Cushman & Wakefield Debenham Tie Lung Ltd London,CPS500,"2,062.43",
Crown Prosecution Service ,09/04/20,Operating lease rentals Property,Estate and FM: Programme,Cushman & Wakefield Debenham Tie Lung Ltd London,CPS500,"8,838.71",
Crown Prosecution Service ,09/04/20,Operating lease rentals Property,Estate and FM: Programme,Cushman & Wakefield Debenham Tie Lung Ltd London,CPS500,"52,500.00",
Crown Prosecution Service ,14/04/20,Transcriptions and Translation,Other Corporate Programme Payments,Mendip Media Group Ltd Tiverton,0000000150,"25,750.00",
Crown Prosecution Service ,14/04/20,Recoverable VAT control,Balance Sheet,Mendip Media Group Ltd Tiverton,0000000150,"5,150.00",Y
Crown Prosecution Service ,14/04/20,Crown Court Graduated Fee Scheme,Northumbria Crown Court Unit,Kings Bench Walk Leeds,114573//PC,"30,913.32",Y
Crown Prosecution Service ,14/04/20,General Professional Services,Strategy and Policy,PricewaterhouseCoopers,1355317958,"67,888.80",Y
Crown Prosecution Service ,14/04/20,Crown Court Graduated Fee Scheme,East of England Crown Court,Red Lion Chambers (18 RLC),153444DWW2ndtrial,"29,453.10",Y
Crown Prosecution Service ,14/04/20,Crown Court Graduated Fee Scheme,London North Complex Casework Unit,5 King's Bench Walk,156171 MH.26/3/20,"62,054.60",Y
Crown Prosecution Service ,14/04/20,Crown Court Graduated Fee Scheme,London North RASSO,Foundry Chambers (9-12 Bell Yard),186574SS,"26,080.28",Y
Crown Prosecution Service ,14/04/20,Crown Court Graduated Fee Scheme,Yorkshire and Humberside Complex Casework Unit,Park Square Barristers (No 6 and Sovereign merged),391926/RWQC1,"62,013.00",Y
Crown Prosecution Service ,14/04/20,Crown Court Graduated Fee Scheme,Yorkshire and Humberside Complex Casework Unit,Park Square Barristers (No 6 and Sovereign merged),394069/SJC2,"35,330.35",Y
Crown Prosecution Service ,14/04/20,Crown Court Graduated Fee Scheme,West Midlands Complex Casework Unit,6 Kings Bench Walk- Chambers of D Fisher & D Perry,98387 BERNARD TB2,"89,085.41",Y
Crown Prosecution Service ,14/04/20,Crown Court Graduated Fee Scheme,London North Complex Casework Unit,6 Kings Bench Walk- Chambers of D Fisher & D Perry,98448 GRACIA AMG,"65,466.17",Y
Crown Prosecution Service ,14/04/20,Crown Court Graduated Fee Scheme,London North Complex Casework Unit,6 Kings Bench Walk- Chambers of D Fisher & D Perry,98448 GRACIA PRA,"32,280.88",Y
Crown Prosecution Service ,15/04/20,Crown Court Very High Cost Cases Full Scheme,SFD North,St Pauls Chambers Leeds,143723 Circus 6,"85,762.00",Y
Crown Prosecution Service ,15/04/20,Internal Training,Prosecution College,Lumesse Limited Luton,20200195,"109,095.56",Y
Crown Prosecution Service ,15/04/20,Recoverable VAT control,Balance Sheet,AVR Transcription Ltd Bolton,34317-MAR20,"7,547.65",Y
Crown Prosecution Service ,15/04/20,Transcriptions and Translation,Other Corporate Programme Payments,AVR Transcription Ltd Bolton,34317-MAR20,"37,738.26",
Crown Prosecution Service ,15/04/20,Crown Court Graduated Fee Scheme,Organised Crime North,Exchange Chambers - Liverpool & Leeds,524306 - AH CLAIM 3,"29,724.36",Y
Crown Prosecution Service ,15/04/20,IT Consultancy Advice,Solution Management,Equal Experts London,INV000815,"56,376.00",Y
Crown Prosecution Service ,16/04/20,Crown Court Very High Cost Cases Full Scheme,Cymru Wales North Crown Court,QEB Hollis Whiteman Chambers,105595 CD,"25,568.82",Y
Crown Prosecution Service ,16/04/20,Higher Court Very High Cost Cases Full Scheme,Cymru Wales North Crown Court,QEB Hollis Whiteman Chambers,105595 CD 1,"76,290.50",Y
Crown Prosecution Service ,16/04/20,Advice/PreSending Very High Cost Cases Full Scheme,SFD North,St Pauls Chambers Leeds,149210 manning 6,"32,886.00",Y
Crown Prosecution Service ,16/04/20,Crown Court Graduated Fee Scheme,North West Complex Casework Unit,New Park Court Chambers Leeds,356107-CS2,"74,785.68",Y
Crown Prosecution Service ,16/04/20,Crown Court Graduated Fee Scheme,North West Complex Casework Unit,New Park Court Chambers Leeds,356107-JG3,"53,059.84",Y
Crown Prosecution Service ,17/04/20,Crown Court Graduated Fee Scheme,Mersey Cheshire Complex Casework Unit,Harrington Street Chambers,1106807/MJR,"39,464.86",Y
Crown Prosecution Service ,17/04/20,Crown Court Graduated Fee Scheme,Mersey Cheshire Complex Casework Unit,Harrington Street Chambers,1107807/IU,"80,435.39",Y
Crown Prosecution Service ,17/04/20,Crown Court Very High Cost Cases Full Scheme,East Midlands Complex Casework Unit,36 Bedford Row,192951-JEC-Stage 4,"34,808.00",Y
Crown Prosecution Service ,17/04/20,Crown Court Graduated Fee Scheme,East Midlands Crown Court Section,36 Bedford Row,195579-DH,"36,830.18",Y
Crown Prosecution Service ,17/04/20,Crown Court Very High Cost Cases Full Scheme,North West Complex Casework Unit,9 St John Street (Nine),395335-2/NC,"28,494.00",Y
Crown Prosecution Service ,17/04/20,Crown Court Very High Cost Cases Full Scheme,Cymru Wales Complex Casework Unit,30 Park Place Chambers,619347-2/AJ,"53,513.30",Y
Crown Prosecution Service ,17/04/20,Crown Court Graduated Fee Scheme,SFD Midlands and Wales,6 Kings Bench Walk- Chambers of D Fisher & D Perry,98132 PALCALLA MB1,"27,476.82",Y
Crown Prosecution Service ,17/04/20,Other publicity and media costs,Press Office,Vuelio London,INV11349,"27,000.00",Y
Crown Prosecution Service ,20/04/20,Crown Court Very High Cost Cases Full Scheme,East Midlands Complex Casework Unit,5 Paper Buildings,110363MM-ST4,"65,516.66",Y
Crown Prosecution Service ,20/04/20,Recoverable VAT control,Balance Sheet,Ministry Of Justice,2322363,"9,651.39",Y
Crown Prosecution Service ,20/04/20,Facilities management,Estate and FM: Programme,Ministry Of Justice,2322363,"48,256.96",
Crown Prosecution Service ,20/04/20,Gas,South East Business Centre,Ministry Of Justice,2322371,916.03,
Crown Prosecution Service ,20/04/20,Electricity,Cymru Wales North Magistrates Court,Ministry Of Justice,2322371,"4,152.70",
Crown Prosecution Service ,20/04/20,Electricity,North West Magistrates Court Hub,Ministry Of Justice,2322371,"13,394.89",
Crown Prosecution Service ,20/04/20,Electricity,Thames and Chiltern Area Business Centre,Ministry Of Justice,2322371,"5,054.58",
Crown Prosecution Service ,20/04/20,Gas,Estate and FM: Administration,Ministry Of Justice,2322371,"1,229.57",
Crown Prosecution Service ,20/04/20,Electricity,South West Area Business Centre,Ministry Of Justice,2322371,"1,143.05",
Crown Prosecution Service ,20/04/20,Electricity,Yorkshire and Humberside Area Business Centre,Ministry Of Justice,2322371,"30,541.82",
Crown Prosecution Service ,20/04/20,Electricity,West Midlands Area Business Centre,Ministry Of Justice,2322371,"8,308.34",
Crown Prosecution Service ,20/04/20,Gas,Yorkshire and Humberside Area Business Centre,Ministry Of Justice,2322371,"5,530.70",
Crown Prosecution Service ,20/04/20,Gas,Thames and Chiltern Area Business Centre,Ministry Of Justice,2322371,"1,753.82",
Crown Prosecution Service ,20/04/20,Water & Sewerage,Estate and FM: Administration,Ministry Of Justice,2322371,546.01,
Crown Prosecution Service ,20/04/20,Electricity,Wessex Area Business Centre,Ministry Of Justice,2322371,"8,377.97",
Crown Prosecution Service ,20/04/20,Gas,East Midlands Area Business Centre,Ministry Of Justice,2322371,"3,700.89",
Crown Prosecution Service ,20/04/20,Electricity,Estate and FM: Administration,Ministry Of Justice,2322371,"2,983.86",
Crown Prosecution Service ,20/04/20,Water & Sewerage,Estate and FM: Programme,Ministry Of Justice,2322371,"5,747.21",
Crown Prosecution Service ,20/04/20,Electricity,East Midlands Area Business Centre,Ministry Of Justice,2322371,"13,949.35",
Crown Prosecution Service ,20/04/20,Electricity,South East Business Centre,Ministry Of Justice,2322371,"11,241.64",
Crown Prosecution Service ,20/04/20,Recoverable VAT control,Balance Sheet,Ministry Of Justice,2322539,"1,928.45",Y
Crown Prosecution Service ,20/04/20,New Works: non capital,Estate and FM: Programme,Ministry Of Justice,2322539,"36,014.23",
Crown Prosecution Service ,20/04/20,Reactive Maintenance,Estate and FM: Programme,Ministry Of Justice,2322539,"9,642.23",
Crown Prosecution Service ,20/04/20,Crown Court Very High Cost Cases Full Scheme,East Midlands Complex Casework Unit,Exchange Chambers - Liverpool & Leeds,541980 CTE,"62,632.06",Y
Crown Prosecution Service ,20/04/20,Crown Court Graduated Fee Scheme,Counter Terrorism Unit: Internal Funding,No 5 Fountain Court Chambers,739839/MBK/OP PAB/2,"41,447.64",Y
Crown Prosecution Service ,20/04/20,Crown Court Graduated Fee Scheme,East Midlands Crown Court Section,No 5 Fountain Court Chambers,751376/JH/O'CONNOR,"46,759.28",Y
Crown Prosecution Service ,20/04/20,Crown Court Very High Cost Cases Full Scheme,East Midlands Complex Casework Unit,Seven Bedford Row,al - silentpool4,"35,705.54",Y
Crown Prosecution Service ,20/04/20,Crown Court Graduated Fee Scheme,London North Complex Casework Unit,QEB Hollis Whiteman Chambers,KB3 106260,"28,256.40",Y
Crown Prosecution Service ,21/04/20,IT Professional Services Design & Development Hardware & Software: Non Capital Purchases,Solution Management,Tisski Ltd Sheffield,0000000006,"27,000.00",Y
Crown Prosecution Service ,21/04/20,IT Professional Services Design & Development Hardware & Software: Non Capital Purchases,Solution Management,Brightwire Technology Services Ltd Peebles,0000000009,"28,238.40",Y
Crown Prosecution Service ,21/04/20,Crown Court Graduated Fee Scheme,London North Complex Casework Unit,QEB Hollis Whiteman Chambers,103974 JE,"38,240.08",Y
Crown Prosecution Service ,21/04/20,Crown Court Very High Cost Cases Full Scheme,London South Crown Court Unit,Red Lion Chambers (18 RLC),147728KBstage15,"28,874.00",Y
Crown Prosecution Service ,21/04/20,Recoverable VAT control,Balance Sheet,WIPRO Holdings London,83020438,"21,742.70",Y
Crown Prosecution Service ,21/04/20,IT services,End User Computing Contract,WIPRO Holdings London,83020438,"108,713.50",
Crown Prosecution Service ,21/04/20,Recoverable VAT control,Balance Sheet,Xerox (UK) Ltd,900198350,"27,257.74",Y
Crown Prosecution Service ,21/04/20,IT services,Print Contract,Xerox (UK) Ltd,900198350,"136,288.67",
Crown Prosecution Service ,21/04/20,Recoverable VAT control,Balance Sheet,Century Link,91061065/995912,"30,132.22",Y
Crown Prosecution Service ,21/04/20,IT services,PSN Connectivity Contract,Century Link,91061065/995912,"150,661.11",
Crown Prosecution Service ,21/04/20,IT services,PSN Services Contract,Century Link,91062207/995653,"158,489.82",
Crown Prosecution Service ,21/04/20,Recoverable VAT control,Balance Sheet,Century Link,91062207/995653,"31,697.96",Y
Crown Prosecution Service ,21/04/20,Operating lease rentals Property,Estate and FM: Programme,Cushman & Wakefield Debenham Tie Lung Ltd London,CPS501,"60,552.60",Y
Crown Prosecution Service ,21/04/20,Landlord service charge,Estate and FM: Programme,Cushman & Wakefield Debenham Tie Lung Ltd London,CPS501,"86,352.55",Y
Crown Prosecution Service ,21/04/20,National non domestic rates,Estate and FM: Programme,Cushman & Wakefield Debenham Tie Lung Ltd London,CPS501,"14,726.00",
Crown Prosecution Service ,21/04/20,National non domestic rates,Estate and FM: Programme,Cushman & Wakefield Debenham Tie Lung Ltd London,CPS501,"10,066.00",
Crown Prosecution Service ,21/04/20,National non domestic rates,Estate and FM: Programme,Cushman & Wakefield Debenham Tie Lung Ltd London,CPS501,"20,605.00",
Crown Prosecution Service ,21/04/20,National non domestic rates,Estate and FM: Administration,Cushman & Wakefield Debenham Tie Lung Ltd London,CPS501,499.00,
Crown Prosecution Service ,21/04/20,National non domestic rates,Estate and FM: Programme,Cushman & Wakefield Debenham Tie Lung Ltd London,CPS501,"13,184.50",
Crown Prosecution Service ,21/04/20,National non domestic rates,Estate and FM: Programme,Cushman & Wakefield Debenham Tie Lung Ltd London,CPS501,"1,050.00",
Crown Prosecution Service ,21/04/20,National non domestic rates,Estate and FM: Programme,Cushman & Wakefield Debenham Tie Lung Ltd London,CPS501,"8,491.00",
Crown Prosecution Service ,21/04/20,National non domestic rates,Estate and FM: Programme,Cushman & Wakefield Debenham Tie Lung Ltd London,CPS501,"5,491.00",
Crown Prosecution Service ,21/04/20,National non domestic rates,Estate and FM: Programme,Cushman & Wakefield Debenham Tie Lung Ltd London,CPS501,"27,904.00",
Crown Prosecution Service ,21/04/20,Operating lease rentals Property,Estate and FM: Programme,Cushman & Wakefield Debenham Tie Lung Ltd London,CPS501,"12,000.00",
Crown Prosecution Service ,21/04/20,National non domestic rates,Estate and FM: Programme,Cushman & Wakefield Debenham Tie Lung Ltd London,CPS501,"5,803.00",
Crown Prosecution Service ,21/04/20,National non domestic rates,Estate and FM: Administration,Cushman & Wakefield Debenham Tie Lung Ltd London,CPS501,"3,537.50",
Crown Prosecution Service ,21/04/20,National non domestic rates,Estate and FM: Programme,Cushman & Wakefield Debenham Tie Lung Ltd London,CPS501,"2,153.00",
Crown Prosecution Service ,21/04/20,National non domestic rates,Estate and FM: Administration,Cushman & Wakefield Debenham Tie Lung Ltd London,CPS501,"13,034.00",
Crown Prosecution Service ,21/04/20,National non domestic rates,Estate and FM: Programme,Cushman & Wakefield Debenham Tie Lung Ltd London,CPS501,"10,314.00",
Crown Prosecution Service ,21/04/20,National non domestic rates,Estate and FM: Programme,Cushman & Wakefield Debenham Tie Lung Ltd London,CPS501,"8,192.00",
Crown Prosecution Service ,21/04/20,National non domestic rates,Estate and FM: Programme,Cushman & Wakefield Debenham Tie Lung Ltd London,CPS501,"4,562.00",
Crown Prosecution Service ,21/04/20,National non domestic rates,Estate and FM: Programme,Cushman & Wakefield Debenham Tie Lung Ltd London,CPS501,"3,448.50",
Crown Prosecution Service ,21/04/20,National non domestic rates,Estate and FM: Programme,Cushman & Wakefield Debenham Tie Lung Ltd London,CPS501,385.20,
Crown Prosecution Service ,21/04/20,National non domestic rates,Estate and FM: Programme,Cushman & Wakefield Debenham Tie Lung Ltd London,CPS501,"3,093.00",
Crown Prosecution Service ,21/04/20,National non domestic rates,Estate and FM: Programme,Cushman & Wakefield Debenham Tie Lung Ltd London,CPS501,"23,552.00",
Crown Prosecution Service ,21/04/20,National non domestic rates,Estate and FM: Programme,Cushman & Wakefield Debenham Tie Lung Ltd London,CPS501,"23,134.00",
Crown Prosecution Service ,21/04/20,National non domestic rates,Estate and FM: Programme,Cushman & Wakefield Debenham Tie Lung Ltd London,CPS501,"26,384.15",
Crown Prosecution Service ,21/04/20,National non domestic rates,Estate and FM: Programme,Cushman & Wakefield Debenham Tie Lung Ltd London,CPS501,"44,697.41",
Crown Prosecution Service ,21/04/20,National non domestic rates,Estate and FM: Programme,Cushman & Wakefield Debenham Tie Lung Ltd London,CPS501,"10,496.00",
Crown Prosecution Service ,21/04/20,National non domestic rates,Estate and FM: Programme,Cushman & Wakefield Debenham Tie Lung Ltd London,CPS501,"2,368.00",
Crown Prosecution Service ,21/04/20,Recoverable VAT control,Balance Sheet,CGI IT UK Ltd,GB014036501,"75,479.96",Y
Crown Prosecution Service ,21/04/20,IT services,Apps and Hosting Contract,CGI IT UK Ltd,GB014036501,"377,399.82",
Crown Prosecution Service ,21/04/20,Recoverable VAT control,Balance Sheet,CGI IT UK Ltd,GB014036600,"16,376.29",Y
Crown Prosecution Service ,21/04/20,IT services,Service Desk Contract,CGI IT UK Ltd,GB014036600,"81,881.47",
Crown Prosecution Service ,21/04/20,Recoverable VAT control,Balance Sheet,CGI IT UK Ltd,GB014036673.,"10,691.20",Y
Crown Prosecution Service ,21/04/20,IT services,DTS Programme Project Cost,CGI IT UK Ltd,GB014036673.,"53,456.00",
Crown Prosecution Service ,21/04/20,Recoverable VAT control,Balance Sheet,CGI IT UK Ltd,GB014036674,"26,114.34",Y
Crown Prosecution Service ,21/04/20,IT services,DTS Programme Project Cost,CGI IT UK Ltd,GB014036674,"130,571.72",
Crown Prosecution Service ,21/04/20,Recoverable VAT control,Balance Sheet,CGI IT UK Ltd,GB014036779,"29,919.30",Y
Crown Prosecution Service ,21/04/20,IT services,DTS Programme Project Cost,CGI IT UK Ltd,GB014036779,"149,596.52",
Crown Prosecution Service ,21/04/20,Professional subscriptions and memberships,Operational Change,Crimeline Training Ltd Wigan,INV-9297,"35,969.68",Y
Crown Prosecution Service ,21/04/20,IT Consultancy Advice,Solution Management,Equal Experts London,INV000708,"34,704.00",Y
Crown Prosecution Service ,21/04/20,Salary sacrifice suspense,Balance Sheet,Edenred,INV21813751,"51,246.60",
Crown Prosecution Service ,21/04/20,IT services,IT Compass Contract,Vodafone Ltd formerly Cable and Wireless Milton Keynes,UK10/032020/1299,"30,519.43",Y
Crown Prosecution Service ,21/04/20,IT services,IT Compass Contract,Vodafone Ltd formerly Cable and Wireless Milton Keynes,UK10/042020/5832,"31,495.07",Y
Crown Prosecution Service ,22/04/20,Crown Court Very High Cost Cases Full Scheme,SFD North,St Pauls Chambers Leeds,143722 Circus 2 6,"52,397.50",Y
Crown Prosecution Service ,22/04/20,Crown Court Graduated Fee Scheme,Counter Terrorism Unit: Internal Funding,Red Lion Chambers (18 RLC),151218BJtrial2,"74,699.80",Y
Crown Prosecution Service ,22/04/20,Crown Court Very High Cost Cases Full Scheme,SFD London,Foundry Chambers (9-12 Bell Yard),187773/JM,"33,404.00",Y
Crown Prosecution Service ,22/04/20,Superannuation Permanent Lawyers,Cymru Wales West Magistrates Court,Cabinet Office RM Shared Services,626618055,"70,554.57",
Crown Prosecution Service ,22/04/20,Crown Court Graduated Fee Scheme,South East Crown Court,15 New Bridge Street,669030-RE 3,"26,143.80",Y
Crown Prosecution Service ,22/04/20,Crown Court Graduated Fee Scheme,London North Complex Casework Unit,9 Gough Square London,TL362247A,"28,982.80",Y
Crown Prosecution Service ,23/04/20,IT non capital software licences,Legal Reference and ICT Licenses,Trustmarque Solutions Ltd,2298629,"38,081.92",Y
Crown Prosecution Service ,23/04/20,Recoverable VAT control,Balance Sheet,Ministry Of Justice,2322540,"77,795.49",Y
Crown Prosecution Service ,23/04/20,Cleaning,Estate and FM: Administration,Ministry Of Justice,2322540,"3,696.49",
Crown Prosecution Service ,23/04/20,Facilities management,Estate and FM: Programme,Ministry Of Justice,2322540,"103,779.66",
Crown Prosecution Service ,23/04/20,General Waste Disposal Services,Estate and FM: Administration,Ministry Of Justice,2322540,"3,445.81",
Crown Prosecution Service ,23/04/20,Grounds Maintenance,Estate and FM: Programme,Ministry Of Justice,2322540,"4,940.30",
Crown Prosecution Service ,23/04/20,General Waste Disposal Services,Estate and FM: Programme,Ministry Of Justice,2322540,"31,202.06",
Crown Prosecution Service ,23/04/20,Cyclical Maintenance,Estate and FM: Programme,Ministry Of Justice,2322540,"95,986.07",
Crown Prosecution Service ,23/04/20,Cyclical Maintenance,Estate and FM: Administration,Ministry Of Justice,2322540,"3,688.95",
Crown Prosecution Service ,23/04/20,Security,Estate and FM: Administration,Ministry Of Justice,2322540,310.68,
Crown Prosecution Service ,23/04/20,Grounds Maintenance,Estate and FM: Administration,Ministry Of Justice,2322540,426.75,
Crown Prosecution Service ,23/04/20,Security,Estate and FM: Programme,Ministry Of Justice,2322540,"45,075.53",
Crown Prosecution Service ,23/04/20,Cleaning,Estate and FM: Programme,Ministry Of Justice,2322540,"141,811.35",
Crown Prosecution Service ,23/04/20,Crown Court Graduated Fee Scheme,Counter Terrorism Unit: Internal Funding,No 5 Fountain Court Chambers,771372/MBK/DUNLEAVY,"39,367.68",Y
Crown Prosecution Service ,23/04/20,IT services,DTS Programme Project Cost,WIPRO Holdings London,83020733,"46,908.00",Y
Crown Prosecution Service ,23/04/20,IT services,DTS Programme Project Cost,CGI IT UK Ltd,GB014036517,"80,323.15",Y
Crown Prosecution Service ,23/04/20,Recoverable VAT control,Balance Sheet,CGI IT UK Ltd,GB014036644,"7,750.22",Y
Crown Prosecution Service ,23/04/20,IT services,DTS Programme Project Cost,CGI IT UK Ltd,GB014036644,"38,751.10",
Crown Prosecution Service ,23/04/20,IT services,DTS Programme Project Cost,CGI IT UK Ltd,GB014036681,"31,868.27",Y
Crown Prosecution Service ,23/04/20,Recoverable VAT control,Balance Sheet,CGI IT UK Ltd,GB014037065,"6,492.99",Y
Crown Prosecution Service ,23/04/20,IT services,Apps and Hosting Contract,CGI IT UK Ltd,GB014037065,"32,464.96",
Crown Prosecution Service ,23/04/20,Recoverable VAT control,Balance Sheet,CDW Limited London,PSINV02735674,"13,426.79",Y
Crown Prosecution Service ,23/04/20,IT non capital software licences,Legal Reference and ICT Licenses,CDW Limited London,PSINV02735674,"67,133.93",
Crown Prosecution Service ,23/04/20,IT services,IT Compass Contract,Vodafone Ltd formerly Cable and Wireless Milton Keynes,UK10/042020/6373,"56,419.80",Y
Crown Prosecution Service ,24/04/20,Crown Court Graduated Fee Scheme,Thames Chiltern Crown Court Unit,Red Lion Chambers (18 RLC),154993KB,"27,915.86",Y
Crown Prosecution Service ,24/04/20,IT non capital software licences,Legal Reference and ICT Licenses,Trustmarque Solutions Ltd,2298674,"39,125.14",Y
Crown Prosecution Service ,24/04/20,IT non capital software licences,Legal Reference and ICT Licenses,Trustmarque Solutions Ltd,2298727,"42,587.05",Y
Crown Prosecution Service ,24/04/20,Crown Court Graduated Fee Scheme,London North Complex Casework Unit,6 Kings Bench Walk- Chambers of D Fisher & D Perry,97762 Lunghy PJA.,"29,322.31",Y
Crown Prosecution Service ,27/04/20,Crown Court Graduated Fee Scheme,Thames Chiltern Crown Court Unit,Nine Bedford Row (9 Bedford Row),138056jb,"74,352.13",Y
Crown Prosecution Service ,27/04/20,Crown Court Graduated Fee Scheme,East Midlands Complex Casework Unit,36 Bedford Row,181988-JBT-Trial,"27,277.74",Y
Crown Prosecution Service ,27/04/20,Crown Court Graduated Fee Scheme,South East Complex Casework Unit,2 Kings Bench Walk London,273243-SHQC,"26,632.90",Y
Crown Prosecution Service ,27/04/20,Crown Court Very High Cost Cases Full Scheme,Cymru Wales Complex Casework Unit,Linenhall Chambers,290952/1FT,"42,979.30",Y
Crown Prosecution Service ,27/04/20,IT services,PSN Services Contract,Century Link,91285287/997357,"61,525.14",Y
Crown Prosecution Service ,27/04/20,Crown Court Graduated Fee Scheme,Counter Terrorism Unit: Internal Funding,6 Kings Bench Walk- Chambers of D Fisher & D Perry,98754 Abedi DP,"78,309.62",Y
Crown Prosecution Service ,28/04/20,Overseas Residential accommodation,International Liaison Magistrates,Foreign And Commonwealth Office,1121135,"18,900.00",
Crown Prosecution Service ,28/04/20,FCO platform charges excluding leases,International External Funding,Foreign And Commonwealth Office,1121135,"10,300.00",
Crown Prosecution Service ,28/04/20,FCO platform charges excluding leases,International External Funding,Foreign And Commonwealth Office,1121135,"10,000.00",
Crown Prosecution Service ,28/04/20,FCO platform charges excluding leases,International External Funding,Foreign And Commonwealth Office,1121135,"8,325.00",
Crown Prosecution Service ,28/04/20,FCO platform charges excluding leases,International Liaison Magistrates,Foreign And Commonwealth Office,1121135,"29,100.00",
Crown Prosecution Service ,28/04/20,FCO platform charges excluding leases,International External Funding,Foreign And Commonwealth Office,1121135,"20,772.00",
Crown Prosecution Service ,28/04/20,FCO platform charges excluding leases,International External Funding,Foreign And Commonwealth Office,1121135,"10,900.00",
Crown Prosecution Service ,28/04/20,Overseas Residential accommodation,International Liaison Magistrates,Foreign And Commonwealth Office,1121135,"26,115.00",
Crown Prosecution Service ,28/04/20,FCO platform charges excluding leases,International External Funding,Foreign And Commonwealth Office,1121135,"4,717.00",
Crown Prosecution Service ,28/04/20,Overseas Residential accommodation,International External Funding,Foreign And Commonwealth Office,1121135,"5,100.00",
Crown Prosecution Service ,28/04/20,Overseas Residential accommodation,International External Funding,Foreign And Commonwealth Office,1121135,"7,000.00",
Crown Prosecution Service ,28/04/20,FCO platform charges excluding leases,International External Funding,Foreign And Commonwealth Office,1121135,"5,350.00",
Crown Prosecution Service ,28/04/20,FCO platform charges excluding leases,International Liaison Magistrates,Foreign And Commonwealth Office,1121135,"3,842.00",
Crown Prosecution Service ,28/04/20,FCO platform charges excluding leases,International External Funding,Foreign And Commonwealth Office,1121135,"5,600.00",
Crown Prosecution Service ,28/04/20,FCO platform charges excluding leases,International External Funding,Foreign And Commonwealth Office,1121135,"8,440.00",
Crown Prosecution Service ,28/04/20,Overseas Residential accommodation,International External Funding,Foreign And Commonwealth Office,1121135,"7,000.00",
Crown Prosecution Service ,28/04/20,FCO platform charges excluding leases,International External Funding,Foreign And Commonwealth Office,1121135,"6,514.00",
Crown Prosecution Service ,28/04/20,Overseas Residential accommodation,International External Funding,Foreign And Commonwealth Office,1121135,"3,525.00",
Crown Prosecution Service ,28/04/20,FCO platform charges excluding leases,International External Funding,Foreign And Commonwealth Office,1121135,"25,050.00",
Crown Prosecution Service ,28/04/20,FCO platform charges excluding leases,International Liaison Magistrates,Foreign And Commonwealth Office,1121135,"8,400.00",
Crown Prosecution Service ,28/04/20,Overseas Residential accommodation,International External Funding,Foreign And Commonwealth Office,1121135,"5,675.00",
Crown Prosecution Service ,28/04/20,Overseas Residential accommodation,International External Funding,Foreign And Commonwealth Office,1121135,"51,148.00",
Crown Prosecution Service ,28/04/20,FCO platform charges excluding leases,International External Funding,Foreign And Commonwealth Office,1121135,"11,725.00",
Crown Prosecution Service ,28/04/20,Overseas Residential accommodation,International External Funding,Foreign And Commonwealth Office,1121135,"4,100.00",
Crown Prosecution Service ,28/04/20,FCO platform charges excluding leases,International External Funding,Foreign And Commonwealth Office,1121135,"14,700.00",
Crown Prosecution Service ,28/04/20,Overseas Residential accommodation,International External Funding,Foreign And Commonwealth Office,1121135,"12,825.00",
Crown Prosecution Service ,28/04/20,Overseas Residential accommodation,International External Funding,Foreign And Commonwealth Office,1121135,"17,700.00",
Crown Prosecution Service ,28/04/20,Overseas Residential accommodation,International External Funding,Foreign And Commonwealth Office,1121135,"3,400.00",
Crown Prosecution Service ,28/04/20,FCO platform charges excluding leases,International Liaison Magistrates,Foreign And Commonwealth Office,1121135,"11,725.00",
Crown Prosecution Service ,28/04/20,Overseas Residential accommodation,International Liaison Magistrates,Foreign And Commonwealth Office,1121135,"13,500.00",
Crown Prosecution Service ,28/04/20,Overseas Residential accommodation,International External Funding,Foreign And Commonwealth Office,1121135,"5,275.00",
Crown Prosecution Service ,28/04/20,FCO platform charges excluding leases,International External Funding,Foreign And Commonwealth Office,1121135,"8,103.00",
Crown Prosecution Service ,28/04/20,FCO platform charges excluding leases,International External Funding,Foreign And Commonwealth Office,1121135,"16,800.00",
Crown Prosecution Service ,28/04/20,Overseas Residential accommodation,International External Funding,Foreign And Commonwealth Office,1121135,"6,900.00",
Crown Prosecution Service ,28/04/20,FCO platform charges excluding leases,International External Funding,Foreign And Commonwealth Office,1121135,"10,050.00",
Crown Prosecution Service ,28/04/20,Overseas Residential accommodation,International Liaison Magistrates,Foreign And Commonwealth Office,1121135,"11,325.00",
Crown Prosecution Service ,28/04/20,FCO platform charges excluding leases,International External Funding,Foreign And Commonwealth Office,1121135,"12,100.00",
Crown Prosecution Service ,28/04/20,Overseas Residential accommodation,International External Funding,Foreign And Commonwealth Office,1121135,"6,025.00",
Crown Prosecution Service ,28/04/20,FCO platform charges excluding leases,International External Funding,Foreign And Commonwealth Office,1121135,"7,125.00",
Crown Prosecution Service ,28/04/20,Overseas Residential accommodation,International External Funding,Foreign And Commonwealth Office,1121135,"8,475.10",
Crown Prosecution Service ,28/04/20,FCO platform charges excluding leases,International External Funding,Foreign And Commonwealth Office,1121135,"10,500.00",
Crown Prosecution Service ,28/04/20,FCO platform charges excluding leases,International Liaison Magistrates,Foreign And Commonwealth Office,1121135,"11,525.00",
Crown Prosecution Service ,28/04/20,FCO platform charges excluding leases,International External Funding,Foreign And Commonwealth Office,1121135,"9,875.00",
Crown Prosecution Service ,28/04/20,FCO platform charges excluding leases,International External Funding,Foreign And Commonwealth Office,1121135,"18,250.00",
Crown Prosecution Service ,28/04/20,Crown Court Graduated Fee Scheme,London North Crown Court Unit,Foundry Chambers (9-12 Bell Yard),185893BSO1,"27,724.21",Y
Crown Prosecution Service ,28/04/20,Crown Court Graduated Fee Scheme,London North Crown Court Unit,Foundry Chambers (9-12 Bell Yard),185893MS,"43,829.46",Y
Crown Prosecution Service ,28/04/20,Crown Court Graduated Fee Scheme,East Midlands Crown Court Section,1 High Pavement Chambers,266166Hazelbrook/AP7,"26,406.60",Y
Crown Prosecution Service ,28/04/20,Crown Court Very High Cost Cases Full Scheme,London South Complex Casework Unit,5 King's Bench Walk,AFJ 169441.SP2,"29,578.00",Y
Crown Prosecution Service ,28/04/20,Crown Court Graduated Fee Scheme,London South Complex Casework Unit,5 King's Bench Walk,CF 167541.Trial1,"34,371.42",Y
Crown Prosecution Service ,28/04/20,Recoverable VAT control,Balance Sheet,Lexis Nexis UK,DI698650F,"37,107.00",Y
Crown Prosecution Service ,28/04/20,IT services,Legal Reference and ICT Licenses,Lexis Nexis UK,DI698650F,"185,535.00",
Crown Prosecution Service ,29/04/20,Crown Court Graduated Fee Scheme,SFD London,Albion Chambers,172269 AM Arthur,"31,909.32",Y
Crown Prosecution Service ,29/04/20,Postage,Organised Crime North,DX Network Services Ltd,82668007,46.92,
Crown Prosecution Service ,29/04/20,Recoverable VAT control,Balance Sheet,DX Network Services Ltd,82668007,"19,500.00",Y
Crown Prosecution Service ,29/04/20,Postage,Thames and Chiltern Area Business Centre,DX Network Services Ltd,82668007,"3,517.96",
Crown Prosecution Service ,29/04/20,Postage,Finance Operations,DX Network Services Ltd,82668007,550.89,
Crown Prosecution Service ,29/04/20,Postage,Cymru Wales West Magistrates Court,DX Network Services Ltd,82668007,"1,576.18",
Crown Prosecution Service ,29/04/20,Postage,Yorks and Humbs Mags Court Legal,DX Network Services Ltd,82668007,"4,147.10",
Crown Prosecution Service ,29/04/20,Postage,East of England Area Business Centre,DX Network Services Ltd,82668007,"3,465.91",
Crown Prosecution Service ,29/04/20,Postage,West Midlands Area Business Centre,DX Network Services Ltd,82668007,"6,599.48",
Crown Prosecution Service ,29/04/20,Postage,Mersey Cheshire Area Business Centre,DX Network Services Ltd,82668007,"3,451.28",
Crown Prosecution Service ,29/04/20,Postage,South West Area Business Centre,DX Network Services Ltd,82668007,"5,010.19",
Crown Prosecution Service ,29/04/20,Postage,Cymru Wales North Magistrates Court,DX Network Services Ltd,82668007,"1,646.88",
Crown Prosecution Service ,29/04/20,Postage,South East Business Centre,DX Network Services Ltd,82668007,"11,106.48",
Crown Prosecution Service ,29/04/20,Postage,Estate and FM: Administration,DX Network Services Ltd,82668007,"6,531.05",
Crown Prosecution Service ,29/04/20,Postage,Wessex Area Business Centre,DX Network Services Ltd,82668007,"6,955.94",
Crown Prosecution Service ,29/04/20,Postage,North West Magistrates Court Hub,DX Network Services Ltd,82668007,"9,973.53",
Crown Prosecution Service ,29/04/20,Postage,Estate and FM: Programme,DX Network Services Ltd,82668007,"17,695.86",
Crown Prosecution Service ,29/04/20,Postage,Organised Crime Birmingham,DX Network Services Ltd,82668007,215.09,
Crown Prosecution Service ,29/04/20,Postage,SFD North,DX Network Services Ltd,82668007,424.53,
Crown Prosecution Service ,29/04/20,Postage,North East Area Business Centre,DX Network Services Ltd,82668007,"3,733.40",
Crown Prosecution Service ,29/04/20,Postage,East Midlands Area Business Centre,DX Network Services Ltd,82668007,"8,088.54",
Crown Prosecution Service ,29/04/20,Postage,Resourcing,DX Network Services Ltd,82668007,23.78,
Crown Prosecution Service ,29/04/20,Postage,Cymru Wales South East Magistrates Court,DX Network Services Ltd,82668007,"2,003.16",
Crown Prosecution Service ,29/04/20,Postage,SFD Midlands and Wales,DX Network Services Ltd,82668007,735.85,
Crown Prosecution Service ,29/04/20,IT services,DTS Programme Project Cost,WIPRO Holdings London,83020840,"114,192.00",Y
Crown Prosecution Service ,29/04/20,IT services,DTS Programme Project Cost,WIPRO Holdings London,83020841,"132,574.80",Y
Crown Prosecution Service ,29/04/20,IT services,DTS Programme Project Cost,WIPRO Holdings London,83020842,"52,992.00",Y
Crown Prosecution Service ,29/04/20,IT services,DTS Programme Project Cost,CGI IT UK Ltd,GB014037151,"94,501.13",Y
Crown Prosecution Service ,29/04/20,Intangibles asset purchase clearing Software licences,Legal Reference and ICT Licenses,CGI IT UK Ltd,GB014037163,"286,941.13",Y
Crown Prosecution Service ,29/04/20,IT services,DTS Programme Project Cost,CGI IT UK Ltd,GB014037277,"78,326.22",Y
Crown Prosecution Service ,29/04/20,Recoverable VAT control,Balance Sheet,CGI IT UK Ltd,GB014037280,"45,614.45",Y
Crown Prosecution Service ,29/04/20,IT services,DTS Programme Project Cost,CGI IT UK Ltd,GB014037280,"228,072.23",
Crown Prosecution Service ,29/04/20,IT services,DTS Programme Project Cost,CGI IT UK Ltd,GB014037453,"216,000.00",Y
Crown Prosecution Service ,29/04/20,IT services,DTS Programme Project Cost,CGI IT UK Ltd,GB014037455,"227,806.44",Y
Crown Prosecution Service ,29/04/20,IT non capital software licences,Legal Reference and ICT Licenses,CDW Limited London,PSINV02726137,"832,260.00",Y
Crown Prosecution Service ,29/04/20,IT non capital software licences,Legal Reference and ICT Licenses,CDW Limited London,PSINV02727685,"503,804.16",Y
Crown Prosecution Service ,30/04/20,Crown Court Graduated Fee Scheme,Counter Terrorism Unit: Internal Funding,Red Lion Chambers (18 RLC),151218NPSretrial,"37,690.01",Y
Crown Prosecution Service ,30/04/20,Crown Court Graduated Fee Scheme,Counter Terrorism Unit: Internal Funding,Red Lion Chambers (18 RLC),152461BJtrial,"27,317.03",Y
Crown Prosecution Service ,30/04/20,Advice/PreSending Very High Cost Cases Full Scheme,SFD North,Red Lion Chambers (18 RLC),154212SCstage14,"59,594.48",Y
Crown Prosecution Service ,30/04/20,Crown Court Graduated Fee Scheme,East Midlands Complex Casework Unit,36 Bedford Row,181988-JJH-Trial,"40,544.40",Y
Crown Prosecution Service ,30/04/20,IT non capital equipment and consumables,DTS Programme Project Cost,Computacenter,3882371879,"106,416.00",Y
